[Event "American Cup Women Elimination 2023"]
[Site "Saint Louis"]
[Date "2023.03.23"]
[Round "4.4"]
[White "Lee, Alice"]
[Black "Paikidze, Nazi"]
[Result "1-0"]
[ECO "A43"]
[WhiteElo "2362"]
[BlackElo "2314"]
[Annotator "TA"]
[PlyCount "121"]
[EventDate "2023.03.15"]
[EventType "k.o."]
[EventCountry "USA"]
[SourceTitle "playchess.com"]
[Source "ChessBase"]
[SourceQuality "1"]
[TimeControl "600+5"]

{[%evp 17,121,33,39,5,15,18,42,8,20,14,20,6,7,-7,-4,-4,-7,-22,-22,-22,-22,-62,-14,-17,-12,-41,-20,-32,25,-18,-19,-18,-24,-16,-20,-20,-17,-19,0,-4,-4,-4,0,0,0,0,286,279,378,390,557,557,547,536,557,557,557,512,602,578,643,550,632,571,903,895,881,789,874,781,774,774,759,735,29954,29955,29955,29958,12823,12849,29943,2544,2035,1883,2544,2445,29962,29963,29964,29965,29965,29965,29963,29962,29966,29967,29980,29981,29980,29981,29984,29981,29980,29980,29980,29980]} 1. d4 {[%emt 0:00:01]} c5 {[%emt 0:00:01]} 2. d5 {[%emt 0:00:01]} g6 {[%emt 0:00:01]} 3. Nc3 {[%emt 0:00:04]} Bg7 {[%emt 0:00:02]} 4. e4 {[%emt 0:00:02]} d6 {[%emt 0:00:01]} 5. Nf3 {[%emt 0:00:05]} Nf6 {[%emt 0:00:06]} 6. Bb5+ {[%emt 0:00:02]} Bd7 {[%emt 0:00:02]} 7. a4 {[%emt 0:00:02]} O-O {[%emt 0:00:01]} 8. O-O {[%emt 0:00:08]} Bxb5 {[%emt 0:00:02]} 9. axb5 {[%emt 0:00:02]} Nbd7 {[%emt 0:00:16]} 10. Nd2 {[%emt 0:00:12]} Nb6 {[%emt 0:00:36]} 11. Qe2 {[%emt 0:00:48]} Qc7 {[%emt 0:00:29]} 12. Nc4 {[%emt 0:00:15] White is slightly better.} Nxc4 {[%emt 0:00:03]} 13. Qxc4 {[%emt 0:00:02]} Nd7 {[%emt 0:00:02]} 14. Bf4 {[%emt 0:00:17]} Nb6 {[%emt 0:00:31]} 15. Qb3 {[%emt 0:00:35]} c4 {[%emt 0:00:43]} 16. Qb4 {[%emt 0:00:11]} f5 {[%emt 0:00:23][%cal Bf7f5,Bf5f4][%mdl 32]} 17. Be3 {[%emt 0:00:52]} f4 {[%emt 0:01:02]} 18. Bxb6 {[%emt 0:00:03]} axb6 {[%emt 0:00:05]} 19. f3 {[%emt 0:01:01]} g5 {[%emt 0:01:15]} (19... Ra5 $15 {is more appropriate.}) 20. Ne2 $11 {[%emt 0:00:29]} Ra5 {[%emt 0:00:23]} 21. Ra3 {[%emt 0:00:59]} Rxa3 {[%emt 0:00:59]} (21... Rc8 $5 {[%cal Rc7c5]} 22. Rfa1 Rxa3 23. Qxa3 (23. Rxa3 Qc5+ 24. Qxc5 Rxc5 $15) 23... Qc5+ 24. Kf1 (24. Qxc5 Rxc5 25. Ra4 Rxb5 $11) 24... Kf7 $11) 22. Qxa3 {[%emt 0:01:01] [#]} c3 {[%emt 0:01:16]} 23. bxc3 {[%emt 0:00:58]} Qc4 {[%emt 0:00:11][%csl LRb5,LRe2]} 24. Re1 {[%emt 0:00:39] White is weak on the dark squares} Rc8 {[%emt 0:00:24][%mdl 1024] Black has compensation.} 25. Qb3 {[%emt 0:00:27]} Qc5+ {[%emt 0:00:10]} 26. Kf1 {[%emt 0:00:06]} Ra8 {[%emt 0:00:12]} 27. Qb4 {[%emt 0:00:22]} Ra2 {[%emt 0:00:58]} 28. Qxc5 {[%emt 0:00:17]} bxc5 {[%emt 0:00:01][%mdl 4096] Endgame KRB-KRN} 29. Rc1 {[%emt 0:00:09]} Rb2 {[%emt 0:00:01]} 30. c4 {[%emt 0:00:03]} Rb4 {[%emt 0:00:02]} 31. c3 $1 {[%emt 0:00:04]} Rxc4 {[%emt 0:00:28][%mdl 8192] White stays focused until the end.} (31... Ra4 $11 {and Black is okay.}) 32. Ra1 $1 $18 {[%emt 0:00:02] Threatens to win with Ra3.} Kf7 {[%emt 0:00:03]} 33. Ra3 {[%emt 0:00:34]} e6 {[%emt 0:00:39]} (33... Bxc3 $142 34. Nxc3 Kf6) 34. dxe6+ {[%emt 0:00:13]} ({Weaker is} 34. Ra7 Bxc3 35. Rxb7+ Kf6 $11) 34... Kxe6 {[%emt 0:00:01]} 35. Ke1 {[%emt 0:00:00]} d5 {[%emt 0:00:33] [#]} 36. exd5+ {[%emt 0:00:03]} Kxd5 {[%emt 0:00:01]} 37. Kd2 {[%emt 0:00:00]} Be5 {[%emt 0:00:45]} 38. Kd3 {[%emt 0:00:03]} h5 {[%emt 0:00:15]} 39. Ra8 {[%emt 0:00:13] And now Rd8+ would win.} Bd6 {[%emt 0:00:01]} 40. h3 {[%emt 0:00:17]} h4 {[%emt 0:00:02]} 41. b6 {[%emt 0:00:23] Repels Bc7} Be7 {[%emt 0:00:05]} 42. Ra1 {[%emt 0:00:30]} Bf6 {[%emt 0:00:03]} 43. Ra3 {[%emt 0:00:13]} Bd8 {[%emt 0:00:04]} 44. Ra7 {[%emt 0:00:08]} Bxb6 {[%emt 0:00:07]} 45. Rxb7 {[%emt 0:00:02]} Ba5 {[%emt 0:00:11] [#]} 46. Rd7+ $1 {[%emt 0:00:20]} Kc6 {[%emt 0:00:09]} 47. Kxc4 {[%emt 0:00:06]} Kxd7 {[%emt 0:00:02]} 48. Kxc5 {[%emt 0:00:01] White wants to mate with Kd5. KB-KN} Ke6 {[%emt 0:00:02]} 49. Kd4 {[%emt 0:00:02]} (49. Nd4+ $142 Kd7 50. c4 Bd8 51. Kd5 Bf6 52. Ne6 Ke7 53. Nc5 Kd8 54. Ne4) 49... Bb6+ {[%emt 0:00:01]} 50. Ke4 {[%emt 0:00:01]} Bf2 {[%emt 0:00:06]} 51. Nd4+ {[%emt 0:00:14]} Kf6 {[%emt 0:00:02]} 52. c4 {[%emt 0:00:01][%cal Bc3c4,Bc4c5][%mdl 32] White mates.} Be1 {[%emt 0:00:03]} 53. c5 {[%emt 0:00:02]} Ba5 {[%emt 0:00:04]} 54. c6 {[%emt 0:00:04]} Ke7 {[%emt 0:00:06]} 55. Kd5 {[%emt 0:00:03]} Bb6 {[%emt 0:00:14]} 56. Ne6 {[%emt 0:00:04]} Kf6 {[%emt 0:00:13]} 57. c7 {[%emt 0:00:03]} Bxc7 {[%emt 0:00:01]} 58. Nxc7 {[%emt 0:00:02]} Kf5 {[%emt 0:00:04]} 59. Ne6 {[%emt 0:00:09]} Kf6 {[%emt 0:00:02] [#]} 60. Nxg5 $1 {[%emt 0:00:05]} Kxg5 {[%emt 0:00:01]} 61. Ke5 {[%emt 0:00:01] Weighted Error Value: White=0.08 (flawless) /Black=0.72} 1-0